lending/lending_fUSD_20250114
["ID","MTS","AMOUNT","RATE_DAILY","PERIOD"]
[348916721,1736872271868,-1000.0,0.00012267,2]
[348916722,1736872271877,-1000.0,0.00012267,2]
[348916723,1736872271887,-1000.0,0.00012267,2]
[348916724,1736872271897,-1000.0,0.00012267,2]
[348916725,1736872271907,-1000.0,0.00012267,2]
[348916726,1736872271917,-1000.0,0.00012267,2]
[348916727,1736872271927,-1000.0,0.00012267,2]
[348916728,1736872271936,-1000.0,0.00012267,2]
[348916729,1736872271945,-1000.0,0.00012267,2]
[348916730,1736872271955,-1000.0,0.00012267,2]
[348916731,1736872271964,-1000.0,0.00012267,2]
[348916732,1736872271975,-1000.0,0.00012267,2]
[348916733,1736872271985,-1000.0,0.00012267,2]
[348916734,1736872271994,-1000.0,0.00012267,2]
[348916735,1736872272004,-1000.0,0.00012267,2]
[348916736,1736872272014,-1000.0,0.00012267,2]
[348916737,1736872272023,-1000.0,0.00012267,2]
[348916738,1736872272032,-1000.0,0.00012267,2]
[348916739,1736872272042,-1000.0,0.00012267,2]
[348916740,1736872272051,-1000.0,0.00012267,2]
[348916741,1736872272061,-1000.0,0.00012267,2]
[348916742,1736872272070,-1000.0,0.00012267,2]
[348916743,1736872272080,-1000.0,0.00012267,2]
[348916744,1736872272090,-1000.0,0.00012267,2]
[348916745,1736872272099,-1000.0,0.00012267,2]
[348916746,1736872272109,-1000.0,0.00012267,2]
[348916747,1736872272118,-1000.0,0.00012267,2]
[348916748,1736872272128,-1042.6256,0.00012267,2]
[348916749,1736872272137,-34043.91267951,0.0001229,2]
[348916750,1736872272147,-894.8228,0.00012299,2]
[348916751,1736872272157,-200.0,0.000123,2]
[348916752,1736872272166,-995.42391114,0.000123,2]
[348916753,1736872272176,-176.4395938,0.00012321,2]
[348916754,1736872272185,-175.6516435,0.00012321,2]
[348916755,1736872272195,-255.4455028,0.00012321,2]
[348916756,1736872272206,-351.3032873,0.00012321,2]
[348916757,1736872272215,-500.0,0.00012323,2]
[348916758,1736872272225,-1272.04,0.00012323,2]
[348916759,1736872272235,-673.02,0.00012323,2]
[348916760,1736872272244,-1169.12,0.00012323,2]
[348916761,1736872272254,-1255.21,0.00012323,2]
[348916762,1736872272263,-1678.69,0.00012323,2]
[348916763,1736872272273,-3037.98,0.00012323,2]
[348916764,1736872272282,-875.97,0.00012323,2]
[348916765,1736872272292,-500.0,0.00012323,2]
[348916766,1736872272302,-957.02,0.00012323,2]
[348916767,1736872272315,-1235.2,0.00012323,2]
[348916768,1736872272326,-1325.08,0.00012323,2]
[348916769,1736872272336,-2577.59,0.00012323,2]
[348916770,1736872272346,-1000.0,0.00012323,2]
[348916771,1736872272356,-2254.21,0.00012323,2]
[348916772,1736872272366,-400.22,0.00012325,2]
[348916773,1736872272376,-151.0,0.00012329,2]
[348916774,1736872272386,-151.0,0.00012329,2]
[348916775,1736872272396,-151.0,0.00012329,2]
[348916776,1736872272405,-266.559155,0.00012329,2]
[348916777,1736872272415,-450.0,0.00012329,2]
[348916778,1736872272425,-450.0,0.00012329,2]
[348916779,1736872272435,-450.0,0.00012329,2]
[348916780,1736872272444,-450.0,0.00012329,2]
[348916781,1736872272454,-450.0,0.00012329,2]
[348916782,1736872272464,-450.0,0.00012329,2]
[348916783,1736872272473,-450.0,0.00012329,2]
[348916784,1736872272483,-450.0,0.00012329,2]
[348916785,1736872272492,-450.0,0.00012329,2]
[348916786,1736872272502,-450.0,0.00012329,2]
[348916787,1736872272511,-450.0,0.00012329,2]
[348916788,1736872272520,-450.0,0.00012329,2]
[348916789,1736872272529,-450.0,0.00012329,2]
[348916790,1736872272539,-450.0,0.00012329,2]
[348916791,1736872272549,-450.0,0.00012329,2]
[348916792,1736872272559,-450.0,0.00012329,2]
[348916793,1736872272570,-450.0,0.00012329,2]
[348916794,1736872272580,-450.0,0.00012329,2]
[348916795,1736872272590,-450.0,0.00012329,2]
[348916796,1736872272601,-450.0,0.00012329,2]
[348916797,1736872272610,-342.236394,0.00012329,2]
[348916798,1736872272620,-342.236394,0.00012329,2]
[348916799,1736872272630,-342.236394,0.00012329,2]
[348916800,1736872272640,-342.236394,0.00012329,2]
[348916801,1736872272649,-342.236394,0.00012329,2]
[348916802,1736872272658,-342.236394,0.00012329,2]
[348916803,1736872272667,-342.236394,0.00012329,2]
[348916804,1736872272677,-342.236394,0.00012329,2]
[348916805,1736872272687,-342.236394,0.00012329,2]
[348916806,1736872272697,-342.236394,0.00012329,2]
[348916807,1736872272708,-342.236394,0.00012329,2]
[348916808,1736872272718,-342.236394,0.00012329,2]
[348916809,1736872272728,-342.236394,0.00012329,2]
[348916810,1736872272739,-342.236394,0.00012329,2]
[348916811,1736872272749,-342.236394,0.00012329,2]
[348916812,1736872272758,-342.236394,0.00012329,2]
[348916813,1736872272768,-342.236394,0.00012329,2]
[348916814,1736872272778,-342.236394,0.00012329,2]
[348916815,1736872272788,-342.236394,0.00012329,2]
[348916816,1736872272798,-342.23639,0.00012329,2]
[348916817,1736872272808,-151.0,0.00012329,2]
[348916818,1736872272818,-151.0,0.00012329,2]
[348916819,1736872272828,-151.0,0.00012329,2]
[348916820,1736872272838,-151.0,0.00012329,2]
[348916821,1736872272848,-1014.42,0.00012329,2]
[348916822,1736872272858,-231.282348,0.00012329,2]
[348916823,1736872272868,-231.282348,0.00012329,2]
[348916824,1736872272878,-231.282348,0.00012329,2]
[348916825,1736872272888,-231.282348,0.00012329,2]
[348916826,1736872272898,-151.0,0.00012329,2]
[348916827,1736872272908,-151.0,0.00012329,2]
[348916828,1736872272918,-306.195203,0.00012329,2]
[348916829,1736872272927,-306.195203,0.00012329,2]
[348916830,1736872272937,-306.195203,0.00012329,2]
[348916831,1736872272947,-306.195203,0.00012329,2]
[348916832,1736872272956,-184.27,0.00012329,2]
[348916833,1736872272966,-151.084434,0.00012329,2]
[348916834,1736872272976,-151.0,0.00012329,2]
[348916835,1736872272986,-231.282348,0.00012329,2]
[348916836,1736872272997,-231.282348,0.00012329,2]
[348916837,1736872273008,-231.282348,0.00012329,2]
[348916838,1736872273018,-231.282348,0.00012329,2]
[348916839,1736872273028,-151.0,0.00012329,2]
[348916840,1736872273038,-151.0,0.00012329,2]
[348916841,1736872273049,-306.195203,0.00012329,2]
[348916842,1736872273058,-306.195203,0.00012329,2]
[348916843,1736872273068,-306.195203,0.00012329,2]
[348916844,1736872273080,-306.195203,0.00012329,2]
[348916845,1736872273089,-2449.92806597,0.00012329,2]
[348916846,1736872273099,-500.0,0.00012329,2]
[348916847,1736872273109,-500.0,0.00012329,2]
[348916848,1736872273118,-260.35241381,0.00012329,2]
[348916849,1736872273128,-150.0,0.00012329,2]
[348916850,1736872273138,-150.0,0.00012329,2]
[348916851,1736872273148,-1350.0,0.00012329,2]
[348916852,1736872273158,-11574.36494182,0.0001233,2]
[348916853,1736872273168,-500.0,0.00012355,2]
[348916854,1736872273177,-500.0,0.00012355,2]
[348916855,1736872273187,-500.0,0.00012355,2]
[348916856,1736872273196,-500.0,0.00012355,2]
[348916857,1736872273205,-500.0,0.00012355,2]
[348916858,1736872273215,-500.0,0.00012355,2]
[348916859,1736872273225,-500.0,0.00012355,2]
[348916860,1736872273235,-500.0,0.00012355,2]
[348916861,1736872273245,-500.0,0.00012355,2]
[348916862,1736872273254,-500.0,0.00012355,2]
[348916863,1736872273264,-500.0,0.00012355,2]
[348916864,1736872273273,-500.0,0.00012355,2]
[348916865,1736872273282,-500.0,0.00012355,2]
[348916866,1736872273292,-566.0,0.00012355,2]
[348916867,1736872273305,-1271.53,0.00012355,2]
[348916868,1736872273316,-1644.81,0.00012355,2]
[348916869,1736872273328,-1764.64,0.00012355,2]
[348916870,1736872273338,-1182.39,0.00012355,2]
[348916871,1736872273348,-2864.91,0.00012355,2]
[348916872,1736872273358,-2088.07,0.00012355,2]
[348916873,1736872273368,-3460.76,0.00012355,2]
[348916874,1736872273378,-3934.84,0.00012355,2]
[348916875,1736872273389,-1542.99,0.00012355,2]
[348916876,1736872273400,-4501.55,0.00012355,2]
[348916877,1736872273410,-500.0,0.00012356,2]
[348916878,1736872273420,-606.92237977,0.00012356,2]
[348916879,1736872273430,-1350.0,0.00012356,2]
[348916880,1736872273440,-694.62929174,0.00012384,2]
[348916881,1736872273450,-1350.0,0.00012384,2]
[348916882,1736872273460,-151.49,0.00012385,2]
[348916883,1736872273471,-486.47,0.00012392,2]
[348916884,1736872273480,-1350.0,0.00012411,2]
[348916885,1736872273491,-2340.78,0.00012424,2]
[348916886,1736872273501,-3843.52,0.00012424,2]
[348916887,1736872273511,-1528.57,0.00012424,2]
[348916888,1736872273521,-1660.46,0.00012424,2]
[348916889,1736872273531,-1123.89,0.00012424,2]
[348916890,1736872273542,-1056.44,0.00012424,2]
[348916891,1736872273552,-2582.46,0.0001243,2]
[348916892,1736872273562,-3766.22,0.0001243,2]
[348916893,1736872273573,-2301.61,0.0001243,2]
[348916894,1736872273584,-500.0,0.0001243,2]
[348916895,1736872273595,-1547.57,0.0001243,2]
[348916896,1736872273606,-3820.79,0.0001243,2]
[348916897,1736872273617,-500.0,0.0001243,2]
[348916898,1736872273627,-500.0,0.0001243,2]
[348916899,1736872273637,-1208.85,0.0001243,2]
[348916900,1736872273648,-369.39471056,0.0001243,2]
[348916901,1736872273657,-1426.4,0.0001243,2]
[348916902,1736872273666,-500.0,0.0001243,2]
[348916903,1736872273676,-500.0,0.00012431,2]
[348916904,1736872273686,-583.02,0.00012431,2]
[348916905,1736872273696,-714.03,0.00012431,2]
[348916906,1736872273705,-500.0,0.00012431,2]
[348916907,1736872273715,-1181.5,0.00012431,2]
[348916908,1736872273725,-792.24,0.00012431,2]
[348916909,1736872273736,-1068.78,0.00012431,2]
[348916910,1736872273746,-866.79,0.00012431,2]
[348916911,1736872273756,-500.0,0.00012431,2]
[348916912,1736872273766,-602.0,0.00012431,2]
[348916913,1736872273776,-508.85,0.00012431,2]
[348916914,1736872273786,-634.25,0.00012431,2]
[348916915,1736872273796,-536.73,0.00012431,2]
[348916916,1736872273806,-692.74,0.00012431,2]
[348916917,1736872273816,-1038.27,0.00012431,2]
[348916918,1736872273828,-516.91,0.00012431,2]
[348916919,1736872273838,-747.3,0.00012431,2]
[348916920,1736872273848,-500.0,0.00012431,2]
[348916921,1736872273859,-561.38,0.00012431,2]
[348916922,1736872273869,-988.41,0.00012431,2]
[348916923,1736872273880,-1790.56,0.00012431,2]
[348916924,1736872273890,-681.34,0.00012431,2]
[348916925,1736872273901,-500.0,0.00012431,2]
[348916926,1736872273912,-500.0,0.00012431,2]
[348916927,1736872273923,-500.0,0.00012431,2]
[348916928,1736872273933,-797.39,0.00012431,2]
[348916929,1736872273942,-500.0,0.00012431,2]
[348916930,1736872273952,-500.0,0.00012431,2]
[348916931,1736872273963,-778.29,0.00012431,2]
[348916932,1736872273973,-500.0,0.00012431,2]
[348916933,1736872273982,-940.99,0.00012431,2]
[348916934,1736872273993,-326.44002872,0.00012431,2]
[348916935,1736872274003,-571.16805648,0.00012431,2]
[348916936,1736872274013,-1229.29,0.00012431,2]
[348916937,1736872274022,-1006.25,0.00012431,2]
[348916938,1736872274032,-500.0,0.00012431,2]
[348916939,1736872274042,-500.0,0.00012431,2]
[348916940,1736872274051,-976.73,0.00012431,2]
[348916941,1736872274062,-563.76,0.00012431,2]
[348916942,1736872274076,-1040.02,0.00012431,2]
[348916943,1736872274086,-1044.65,0.00012431,2]
[348916944,1736872274096,-747.75,0.00012431,2]
[348916945,1736872274106,-942.04,0.00012431,2]
[348916946,1736872274117,-1793.87,0.00012431,2]
[348916947,1736872274127,-1163.45,0.00012431,2]
[348916948,1736872274137,-500.0,0.00012431,2]
[348916949,1736872274146,-593.13,0.00012431,2]
[348916950,1736872274157,-500.0,0.00012431,2]
[348916951,1736872274167,-500.0,0.00012431,2]
[348916952,1736872274177,-500.0,0.00012431,2]
[348916953,1736872274187,-1074.9,0.00012431,2]
[348916954,1736872274197,-520.86,0.00012431,2]
[348916955,1736872274207,-1106.23,0.00012431,2]
[348916956,1736872274217,-500.0,0.00012431,2]
[348916957,1736872274227,-1223.96,0.00012431,2]
[348916958,1736872274238,-2876.96,0.00012431,2]
[348916959,1736872274248,-500.0,0.00012431,2]
[348916960,1736872274258,-941.53,0.00012431,2]
[348916961,1736872274268,-826.21,0.00012431,2]
[348916962,1736872274278,-713.39,0.00012431,2]
[348916963,1736872274289,-257.42722067,0.00012431,2]
[348916964,1736872274300,-1982.6,0.00012431,2]
[348916965,1736872274313,-1269.8,0.00012431,2]
[348916966,1736872274328,-1061.78,0.00012431,2]
[348916967,1736872274338,-500.0,0.00012431,2]
[348916968,1736872274349,-1071.15,0.00012431,2]
[348916969,1736872274360,-647.07,0.00012431,2]
[348916970,1736872274370,-358.59776977,0.00012431,2]
[348916971,1736872274380,-1641.47,0.00012431,2]
[348916972,1736872274391,-500.0,0.00012431,2]
[348916973,1736872274400,-361.78081139,0.00012431,2]
[348916974,1736872274410,-1015.13304,0.00012431,2]
[348916975,1736872274421,-500.0,0.00012431,2]
[348916976,1736872274431,-1061.21,0.00012431,2]
[348916977,1736872274442,-500.0,0.00012431,2]
[348916978,1736872274452,-850.59,0.00012431,2]
[348916979,1736872274462,-500.0,0.00012431,2]
[348916980,1736872274472,-4483.26,0.00012431,2]
[348916981,1736872274482,-1028.024937,0.00012431,2]
[348916982,1736872274492,-1008.96,0.00012431,2]
[348916983,1736872274502,-500.0,0.00012431,2]
[348916984,1736872274512,-1034.71,0.00012431,2]
[348916985,1736872274522,-856.72,0.00012431,2]
[348916986,1736872274533,-729.65,0.00012431,2]
[348916987,1736872274544,-1242.21,0.00012431,2]
[348916988,1736872274554,-807.27,0.00012431,2]
[348916989,1736872274565,-500.0,0.00012431,2]
[348916990,1736872274579,-1062.24,0.00012431,2]
[348916991,1736872274590,-500.0,0.00012431,2]
[348916992,1736872274603,-570.32,0.00012431,2]
[348916993,1736872274613,-942.52,0.00012431,2]
[348916994,1736872274623,-500.0,0.00012431,2]
[348916995,1736872274632,-957.09,0.00012431,2]
[348916996,1736872274643,-500.0,0.00012431,2]
[348916997,1736872274653,-500.0,0.00012431,2]
[348916998,1736872274663,-693.23,0.00012431,2]
[348916999,1736872274673,-3653.54,0.00012431,2]
[348917000,1736872274683,-583.72,0.00012431,2]
[348917001,1736872274693,-500.0,0.00012431,2]
[348917002,1736872274703,-500.0,0.00012431,2]
[348917003,1736872274713,-1575.62,0.00012431,2]
[348917004,1736872274723,-3284.13,0.00012431,2]
[348917005,1736872274733,-1170.16,0.00012431,2]
[348917006,1736872274743,-10132.63,0.00012431,2]
[348917007,1736872274755,-775.45,0.00012431,2]
[348917008,1736872274765,-500.0,0.00012431,2]
[348917009,1736872274776,-500.0,0.00012431,2]
[348917010,1736872274787,-1128.07,0.00012431,2]
[348917011,1736872274798,-773.5,0.00012431,2]
[348917012,1736872274808,-4764.34,0.00012431,2]
[348917013,1736872274818,-593.12,0.00012431,2]
[348917014,1736872274833,-1091.87,0.00012431,2]
[348917015,1736872274844,-804.34,0.00012431,2]
[348917016,1736872274854,-3004.08,0.00012431,2]
[348917017,1736872274866,-628.33,0.00012431,2]
[348917018,1736872274876,-721.13,0.00012431,2]
[348917019,1736872274887,-2906.87,0.00012431,2]
[348917020,1736872274896,-500.0,0.00012431,2]
[348917021,1736872274906,-6610.26,0.00012431,2]
[348917022,1736872274916,-500.0,0.00012431,2]
[348917023,1736872274926,-1597.69,0.00012431,2]
[348917024,1736872274936,-903.79,0.00012431,2]
[348917025,1736872274946,-500.0,0.00012431,2]
[348917026,1736872274958,-500.0,0.00012431,2]
[348917027,1736872274968,-500.0,0.00012431,2]
[348917028,1736872274979,-5191.48,0.00012431,2]
[348917029,1736872274989,-505.24,0.00012431,2]
[348917030,1736872274999,-1417.4,0.00012431,2]
[348917031,1736872275010,-1623.37,0.00012431,2]
[348917032,1736872275020,-500.0,0.00012431,2]
[348917033,1736872275030,-500.0,0.00012431,2]
[348917034,1736872275212,-903.24,0.00012431,2]
[348917035,1736872275233,-1969.17,0.00012431,2]
[348917036,1736872275245,-962.15,0.00012431,2]
[348917037,1736872275255,-932.49,0.00012431,2]
[348917038,1736872275265,-956.86,0.00012431,2]
[348917039,1736872275275,-500.0,0.00012431,2]
[348917040,1736872275284,-1098.98,0.00012431,2]
[348917041,1736872275294,-3822.97,0.00012431,2]
[348917042,1736872275306,-500.0,0.00012431,2]
[348917043,1736872275316,-572.49,0.00012431,2]
[348917044,1736872275329,-500.0,0.00012431,2]
[348917045,1736872275338,-2529.39,0.00012431,2]
[348917046,1736872275349,-764.12,0.00012431,2]
[348917047,1736872275359,-987.24,0.00012431,2]
[348917048,1736872275369,-500.0,0.00012431,2]
[348917049,1736872275379,-500.0,0.00012431,2]
[348917050,1736872275390,-1889.58,0.00012431,2]
[348917051,1736872275399,-538.84,0.00012431,2]
[348917052,1736872275408,-500.0,0.00012431,2]
[348917053,1736872275417,-500.0,0.00012432,2]
[348917054,1736872275426,-500.0,0.00012432,2]
[348917055,1736872275435,-500.0,0.00012432,2]
[348917056,1736872275445,-547.14,0.00012432,2]
[348917057,1736872275455,-500.0,0.00012432,2]
[348917058,1736872275464,-500.0,0.00012432,2]
[348917059,1736872275474,-500.0,0.00012432,2]
[348917060,1736872275483,-500.0,0.00012432,2]
[348917061,1736872275493,-500.0,0.00012432,2]
[348917062,1736872275502,-500.0,0.00012432,2]
[348917063,1736872275512,-500.0,0.00012432,2]
[348917064,1736872275521,-500.0,0.00012432,2]
[348917065,1736872275531,-1451.36,0.00012432,2]
[348917066,1736872275541,-1176.92,0.00012432,2]
[348917067,1736872275550,-500.0,0.00012432,2]
[348917068,1736872275560,-1055.97,0.00012432,2]
[348917069,1736872275570,-500.0,0.00012432,2]
[348917070,1736872275584,-2317.71,0.00012432,2]
[348917071,1736872275595,-500.0,0.00012432,2]
[348917072,1736872275604,-151.0,0.00012432,2]
[348917073,1736872275614,-1470.32,0.00012432,2]
[348917074,1736872275624,-2492.01,0.00012432,2]
[348917075,1736872275633,-500.0,0.00012432,2]
[348917076,1736872275647,-1795.2,0.00012432,2]
[348917077,1736872275656,-500.0,0.00012432,2]
[348917078,1736872275666,-500.0,0.00012432,2]
[348917079,1736872275676,-500.0,0.00012432,2]
[348917080,1736872275685,-500.0,0.00012433,2]
[348917081,1736872275695,-662.39,0.00012433,2]
[348917082,1736872275705,-186.03506769,0.00012433,2]
[348917083,1736872275716,-1350.0,0.00012439,2]
[348917084,1736872275726,-151.0,0.00012456,2]
[348917085,1736872275736,-1170.67769,0.00012456,2]
[348917086,1736872275747,-151.0,0.00012456,2]
[348917087,1736872275756,-1170.67769,0.00012456,2]
[348917088,1736872275766,-1462.648682,0.00012456,2]
[348917089,1736872275776,-1462.648682,0.00012456,2]
[348917090,1736872275787,-16222.94448749,0.00012456,2]
[348917091,1736872275797,-1350.0,0.00012466,2]
[348917092,1736872275807,-1350.0,0.00012493,2]
[348917093,1736872275816,-293.87411932,0.000125,2]
[348917094,1736872275828,-1350.0,0.00012521,2]
[348917095,1736872275838,-484.40542836,0.00012528,2]
[348917096,1736872275848,-1350.0,0.00012548,2]
[348917097,1736872275857,-1350.0,0.00012576,2]
[348917098,1736872275866,-500.0,0.00012596,2]
[348917099,1736872275877,-500.0,0.00012597,2]
[348917100,1736872275887,-1272.04,0.00012597,2]
[348917101,1736872275896,-673.02,0.00012597,2]
[348917102,1736872275905,-1169.12,0.00012597,2]
[348917103,1736872275915,-1255.21,0.00012597,2]
[348917104,1736872275926,-1678.69,0.00012597,2]
[348917105,1736872275935,-3037.98,0.00012597,2]
[348917106,1736872275945,-875.97,0.00012597,2]
[348917107,1736872275954,-500.0,0.00012597,2]
[348917108,1736872275964,-957.02,0.00012597,2]
[348917109,1736872275974,-1235.2,0.00012597,2]
[348917110,1736872275984,-1325.08,0.00012597,2]
[348917111,1736872275994,-2577.59,0.00012597,2]
[348917112,1736872276004,-1000.0,0.00012597,2]
[348917113,1736872276015,-2254.21,0.00012597,2]
[348917114,1736872276024,-1528.86,0.00012597,2]
[348917115,1736872276034,-61766.53,0.00012603,2]
[348917116,1736872276045,-1350.0,0.00012603,2]
[348917117,1736872276054,-1271.53,0.00012629,2]
[348917118,1736872276064,-1644.81,0.00012629,2]
[348917119,1736872276075,-1764.64,0.00012629,2]
[348917120,1736872276085,-1182.39,0.00012629,2]
[348917121,1736872276095,-2864.91,0.00012629,2]
[348917122,1736872276105,-2088.07,0.00012629,2]
[348917123,1736872276115,-3460.76,0.00012629,2]
[348917124,1736872276124,-3934.84,0.00012629,2]
[348917125,1736872276134,-1542.99,0.00012629,2]
[348917126,1736872276145,-4501.55,0.00012629,2]
[348917127,1736872276155,-1350.0,0.0001263,2]
[348917128,1736872276165,-1456.54324193,0.00012645,2]
[348917129,1736872276174,-1350.0,0.00012658,2]
[348917130,1736872276185,-1350.0,0.00012685,2]
[348917131,1736872276198,-2340.78,0.00012698,2]
[348917132,1736872276212,-3843.52,0.00012698,2]
[348917133,1736872276222,-1528.57,0.00012698,2]
[348917134,1736872276233,-1660.46,0.00012698,2]
[348917135,1736872276243,-1123.89,0.00012698,2]
[348917136,1736872276253,-1056.44,0.00012698,2]
[348917137,1736872276262,-2582.46,0.00012704,2]
[348917138,1736872276274,-3766.22,0.00012704,2]
[348917139,1736872276286,-2301.61,0.00012704,2]
[348917140,1736872276306,-500.0,0.00012704,2]
[348917141,1736872276319,-1547.57,0.00012704,2]
[348917142,1736872276331,-3820.79,0.00012704,2]
[348917143,1736872276341,-500.0,0.00012704,2]
[348917144,1736872276351,-500.0,0.00012704,2]
[348917145,1736872276361,-1208.85,0.00012704,2]
[348917146,1736872276370,-1426.4,0.00012704,2]
[348917147,1736872276379,-500.0,0.00012704,2]
[348917148,1736872276390,-500.0,0.00012705,2]
[348917149,1736872276400,-583.02,0.00012705,2]
[348917150,1736872276409,-714.03,0.00012705,2]
[348917151,1736872276418,-500.0,0.00012705,2]
[348917152,1736872276428,-1181.5,0.00012705,2]
[348917153,1736872276438,-792.24,0.00012705,2]
[348917154,1736872276447,-1068.78,0.00012705,2]
[348917155,1736872276456,-866.79,0.00012705,2]
[348917156,1736872276466,-500.0,0.00012705,2]
[348917157,1736872276476,-602.0,0.00012705,2]
[348917158,1736872276485,-508.85,0.00012705,2]
[348917159,1736872276494,-634.25,0.00012705,2]
[348917160,1736872276504,-536.73,0.00012705,2]
[348917161,1736872276513,-692.74,0.00012705,2]
[348917162,1736872276523,-1038.27,0.00012705,2]
[348917163,1736872276532,-516.91,0.00012705,2]
[348917164,1736872276541,-747.3,0.00012705,2]
[348917165,1736872276551,-500.0,0.00012705,2]
[348917166,1736872276561,-561.38,0.00012705,2]
[348917167,1736872276570,-988.41,0.00012705,2]
[348917168,1736872276579,-1790.56,0.00012705,2]
[348917169,1736872276589,-681.34,0.00012705,2]
[348917170,1736872276601,-500.0,0.00012705,2]
[348917171,1736872276610,-500.0,0.00012705,2]
[348917172,1736872276620,-500.0,0.00012705,2]
[348917173,1736872276630,-797.39,0.00012705,2]
[348917174,1736872276639,-500.0,0.00012705,2]
[348917175,1736872276649,-500.0,0.00012705,2]
[348917176,1736872276659,-778.29,0.00012705,2]
[348917177,1736872276668,-500.0,0.00012705,2]
[348917178,1736872276678,-940.99,0.00012705,2]
[348917179,1736872276687,-1229.29,0.00012705,2]
[348917180,1736872276697,-1006.25,0.00012705,2]
[348917181,1736872276707,-500.0,0.00012705,2]
[348917182,1736872276716,-297.52367893,0.00012705,2]
[348917183,1736872276726,-976.73,0.00012705,2]
[348917184,1736872276735,-563.76,0.00012705,2]
[348917185,1736872276745,-1040.02,0.00012705,2]
[348917186,1736872276755,-1044.65,0.00012705,2]
[348917187,1736872276764,-747.75,0.00012705,2]
[348917188,1736872276774,-942.04,0.00012705,2]
[348917189,1736872276784,-1793.87,0.00012705,2]
[348917190,1736872276794,-1163.45,0.00012705,2]
[348917191,1736872276803,-500.0,0.00012705,2]
[348917192,1736872276813,-593.13,0.00012705,2]
[348917193,1736872276826,-500.0,0.00012705,2]
[348917194,1736872276836,-500.0,0.00012705,2]
[348917195,1736872276846,-500.0,0.00012705,2]
[348917196,1736872276855,-1074.9,0.00012705,2]
[348917197,1736872276865,-1106.23,0.00012705,2]
[348917198,1736872276875,-525.19147033,0.00012705,2]
[348917199,1736872276884,-1223.96,0.00012705,2]
[348917200,1736872276894,-2876.96,0.00012705,2]
[348917201,1736872276903,-500.0,0.00012705,2]
[348917202,1736872276913,-941.53,0.00012705,2]
[348917203,1736872276922,-826.21,0.00012705,2]
[348917204,1736872276932,-713.39,0.00012705,2]
[348917205,1736872276941,-1982.6,0.00012705,2]
[348917206,1736872276951,-1061.78,0.00012705,2]
[348917207,1736872276961,-1269.8,0.00012705,2]
[348917208,1736872276971,-1071.15,0.00012705,2]
[348917209,1736872276980,-647.07,0.00012705,2]
[348917210,1736872276990,-1641.47,0.00012705,2]
[348917211,1736872277000,-234.82879078,0.00012705,2]
[348917212,1736872277010,-1015.13304,0.00012705,2]
[348917213,1736872277020,-500.0,0.00012705,2]
[348917214,1736872277030,-1061.21,0.00012705,2]
[348917215,1736872277039,-500.0,0.00012705,2]
[348917216,1736872277049,-850.59,0.00012705,2]
[348917217,1736872277059,-500.0,0.00012705,2]
[348917218,1736872277067,-4483.26,0.00012705,2]
[348917219,1736872277077,-1028.024937,0.00012705,2]
[348917220,1736872277087,-1008.96,0.00012705,2]